bitfinex/quotes_BTCUSD_20220226
["timestamp","ask_amount","ask_price","bid_price","bid_amount"]
[1645858748832,0.04069242,39155.0,39148.0,6.421e-05]
[1645858749177,0.0512,39154.0,39150.0,0.19641652]
[1645858749374,0.0512,39154.0,39150.0,0.19606858]
[1645858749777,0.0512,39154.0,39150.0,0.19706858]
[1645858750175,0.00131778,39155.0,39150.0,0.19706858]
[1645858750975,0.00131778,39155.0,39150.0,0.19606858]
[1645858751776,0.00131778,39155.0,39150.0,0.19706858]
[1645858752576,0.00131778,39155.0,39150.0,0.1971326]
[1645858753048,0.00131778,39155.0,39150.0,0.1961326]
[1645858753855,0.00131778,39155.0,39150.0,0.1971326]
[1645858754650,0.00131778,39155.0,39152.0,0.00424019]
[1645858755956,0.00131778,39155.0,39152.0,0.00524019]
[1645858756555,0.00036771,39155.0,39152.0,0.00524019]
[1645858757279,0.00036771,39155.0,39153.0,0.478907]
[1645858757480,0.00036771,39155.0,39154.0,0.30695886]
[1645858757678,0.00036771,39155.0,39154.0,0.68586586]
[1645858758481,0.00036771,39155.0,39154.0,0.30695886]
[1645858759279,0.00036771,39155.0,39153.0,0.10006383]
[1645858759480,0.00036771,39155.0,39154.0,0.378907]
[1645858759883,0.00036771,39155.0,39154.0,0.38059931]
[1645858760724,0.00036771,39155.0,39154.0,0.59576665]
[1645858760927,0.00046111,39160.0,39155.0,1.2]
[1645858761130,0.00034279,39164.0,39154.0,0.21685965]
[1645858761726,0.00134279,39164.0,39154.0,0.21685965]
[1645858761927,0.001,39164.0,39159.0,0.18039384]
[1645858762128,0.00134281,39164.0,39159.0,0.18039384]
[1645858763127,0.00588178,39167.0,39159.0,0.18039384]
[1645858763327,0.00034282,39164.0,39159.0,0.18039384]
[1645858763929,0.00034282,39164.0,39155.0,0.02554]
[1645858764173,0.31384064,39167.0,39155.0,0.02554]
[1645858764376,0.00688178,39167.0,39155.0,0.02554]
[1645858764573,0.00034281,39164.0,39155.0,0.02554]
[1645858764772,0.00034281,39164.0,39155.0,0.02778669]
[1645858764974,0.00034281,39164.0,39156.0,0.20365618]
[1645858765374,0.31284064,39167.0,39156.0,0.20365618]
[1645858765576,0.00588178,39167.0,39156.0,0.20365618]
[1645858765774,0.00134281,39164.0,39156.0,0.20365618]
[1645858766675,0.001,39164.0,39156.0,0.20365618]
[1645858766874,0.00134281,39164.0,39156.0,0.20365618]
[1645858767075,0.00034281,39164.0,39155.0,0.00224669]
[1645858767477,0.30730167,39164.0,39155.0,0.00224669]
[1645858767681,0.07674,39163.0,39156.0,6.355e-05]
[1645858767972,0.32070543,39162.0,39156.0,6.355e-05]
[1645858768172,0.0512,39161.0,39156.0,6.355e-05]
[1645858768377,0.30695886,39160.0,39156.0,6.355e-05]
[1645858768572,0.0512,39159.0,39156.0,6.355e-05]
[1645858768772,0.30695886,39158.0,39156.0,6.355e-05]
[1645858768978,0.0512,39157.0,39156.0,6.355e-05]
[1645858769771,0.0522,39157.0,39156.0,6.355e-05]
[1645858771173,0.0512,39157.0,39156.0,6.355e-05]
[1645858771776,0.0532,39157.0,39156.0,6.355e-05]
[1645858773076,0.0512,39157.0,39156.0,6.355e-05]
[1645858775826,0.0522,39157.0,39156.0,6.355e-05]
[1645858777026,0.0512,39157.0,39156.0,6.355e-05]
[1645858777226,0.0512,39157.0,39151.0,0.21321836]
[1645858777627,0.0512,39157.0,39156.0,6.355e-05]
[1645858777827,0.0522,39157.0,39156.0,6.355e-05]
[1645858778533,0.001,39157.0,39156.0,6.355e-05]
[1645858778731,0.001,39157.0,39156.0,0.76622355]
[1645858778934,0.4045381,39164.0,39156.0,1.07318241]
[1645858779190,0.0003428,39164.0,39156.0,1.07318241]
[1645858779788,0.002,39164.0,39156.0,1.07318241]
[1645858780187,0.00234281,39164.0,39156.0,0.76622355]
[1645858780986,0.002,39164.0,39156.0,0.76622355]
[1645858781389,0.00034281,39164.0,39156.0,0.76622355]
[1645858781791,0.06387757,39162.0,39156.0,0.76622355]
[1645858783428,0.06387757,39162.0,39156.0,0.99432744]
[1645858784126,0.06587757,39162.0,39156.0,0.99432744]
[1645858785028,0.06387757,39162.0,39156.0,0.99432744]
[1645858785829,0.06587757,39162.0,39156.0,0.99432744]
[1645858786432,0.06587757,39162.0,39156.0,0.76622355]
[1645858787085,0.06387757,39162.0,39156.0,0.76622355]
[1645858787282,0.06387757,39162.0,39156.0,0.98132963]
[1645858787882,0.06487757,39162.0,39156.0,0.98132963]
[1645858788684,0.063881,39161.0,39156.0,0.98132963]
[1645858791139,0.063881,39161.0,39157.0,0.30638354]
[1645858791538,0.06387757,39162.0,39157.0,0.30638354]
[1645858791937,0.001,39161.0,39156.0,0.98132963]
[1645858792537,0.001,39161.0,39157.0,0.21510608]
[1645858793137,0.06387757,39162.0,39157.0,0.21510608]
[1645858793338,0.06387757,39162.0,39158.0,0.30638354]
[1645858793538,0.00034281,39164.0,39158.0,0.30638354]
[1645858794383,0.113873,39166.0,39163.0,0.18864813]
[1645858794587,0.00034282,39164.0,39163.0,0.18864813]
[1645858795385,0.00034282,39164.0,39158.0,0.30638354]
[1645858795587,0.113873,39166.0,39156.0,1.07260709]
[1645858795784,0.00034282,39165.0,39156.0,1.07260709]
[1645858795984,0.001,39164.0,39156.0,1.07260709]
[1645858796486,0.001,39164.0,39161.0,0.18509696]
[1645858796886,0.00132041,39164.0,39161.0,0.18509696]
[1645858797086,0.00032041,39164.0,39161.0,0.18509696]
[1645858797949,0.063873,39166.0,39161.0,0.18509696]
[1645858798149,0.00032041,39164.0,39161.0,0.18509696]
[1645858798652,0.00032041,39164.0,39162.0,0.30638354]
[1645858798852,0.00032041,39164.0,39162.0,0.68529054]
[1645858799051,0.00032041,39164.0,39163.0,0.30638354]
[1645858799253,0.30299427,39170.0,39165.0,0.378907]
[1645858799450,0.30299427,39170.0,39167.0,0.378907]
[1645858799651,0.18764223,39173.0,39169.0,0.20308862]
[1645858799850,0.18764223,39173.0,39170.0,0.30638354]
[1645858800157,0.18764223,39173.0,39169.0,0.20308862]
[1645858800158,0.015,39173.0,39169.0,0.20308862]
[1645858800551,0.01516994,39173.0,39169.0,0.20308862]
[1645858800950,0.01516994,39173.0,39170.0,0.30638354]
[1645858801150,0.01516994,39173.0,39169.0,0.20308862]
[1645858801351,0.01516994,39173.0,39170.0,0.378907]
[1645858801552,0.015,39173.0,39169.0,0.20308862]
[1645858801788,0.01516994,39173.0,39169.0,0.20308862]
[1645858801987,0.0170884,39173.0,39169.0,0.20308862]
[1645858802487,0.0170884,39173.0,39170.0,0.378907]
[1645858802488,0.01169428,39171.0,39170.0,0.378907]
[1645858802691,0.01691846,39173.0,39169.0,0.20308862]
[1645858802888,0.0170884,39173.0,39169.0,0.20308862]
[1645858803290,0.0150884,39173.0,39169.0,0.20308862]
[1645858803892,0.01169428,39171.0,39169.0,0.20308862]
[1645858804093,0.01691846,39173.0,39169.0,0.20308862]
[1645858804290,0.01726147,39173.0,39169.0,0.20308862]
[1645858804893,0.01726147,39173.0,39169.0,0.20302488]
[1645858805092,0.01691846,39173.0,39169.0,0.20302488]
[1645858805297,0.01491846,39173.0,39169.0,0.20302488]
[1645858805530,0.01169428,39171.0,39169.0,0.20302488]
[1645858805735,0.01526147,39173.0,39169.0,0.20302488]
[1645858806030,0.01726147,39173.0,39169.0,0.20302488]
[1645858806431,0.01691846,39173.0,39169.0,0.20302488]
[1645858806632,0.00234301,39173.0,39169.0,0.20302488]
[1645858807031,0.01169428,39171.0,39169.0,0.20302488]
[1645858807433,0.03158445,39177.0,39170.0,0.30638354]
[1645858807837,0.00034302,39172.0,39171.0,0.378907]
[1645858808231,0.00034302,39172.0,39171.0,0.30638354]
[1645858808433,0.00034302,39172.0,39171.0,0.68529054]
[1645858808632,0.0120373,39172.0,39171.0,0.68529054]
[1645858808833,0.01169428,39172.0,39171.0,0.68529054]
[1645858809279,0.01169428,39172.0,39171.0,1.73679364]
[1645858810582,0.01169428,39172.0,39171.0,1.73668737]
[1645858811983,0.01269428,39172.0,39171.0,1.73668737]
[1645858812582,0.01269428,39172.0,39171.0,1.73675248]
[1645858813236,0.01169428,39172.0,39171.0,1.73675248]
[1645858813435,0.01169428,39172.0,39171.0,2.50262248]
[1645858813935,0.01169428,39172.0,39171.0,2.50362248]
[1645858815337,0.01169428,39172.0,39171.0,2.12371548]
[1645858815543,0.01169428,39172.0,39171.0,1.24192089]
[1645858815738,0.01169428,39172.0,39171.0,0.76587]
[1645858815939,0.01169428,39172.0,39171.0,1.24192089]
[1645858815940,0.01269428,39172.0,39171.0,1.24192089]
[1645858817187,0.01169428,39172.0,39171.0,1.24192089]
[1645858817688,0.01169428,39172.0,39171.0,1.241986]
[1645858817889,0.01269428,39172.0,39171.0,1.241986]
[1645858818988,0.01269428,39172.0,39171.0,1.2415464]
[1645858819187,0.01169428,39172.0,39171.0,1.2415464]
[1645858820088,0.01269428,39172.0,39171.0,1.2415464]
[1645858821350,0.01169428,39172.0,39171.0,1.2415464]
[1645858821947,0.01269428,39172.0,39171.0,1.2415464]
[1645858823449,0.01169428,39172.0,39171.0,1.2415464]
[1645858824049,0.01269428,39172.0,39171.0,1.2415464]
[1645858825280,0.01169428,39172.0,39171.0,1.2415464]
[1645858826080,0.01269428,39172.0,39171.0,1.2415464]
[1645858826281,0.00769428,39172.0,39171.0,1.2415464]
[1645858826480,0.001,39172.0,39171.0,1.2415464]
[1645858826680,0.00769428,39172.0,39171.0,1.2415464]
[1645858827281,0.00669428,39172.0,39171.0,1.2415464]
[1645858827938,0.00769428,39172.0,39171.0,1.2415464]
[1645858829341,0.00669428,39172.0,39171.0,1.2415464]
[1645858830144,0.00769428,39172.0,39171.0,1.2415464]
[1645858830345,2.58560899,39172.0,39171.0,1.2415464]
[1645858830746,2.6076169,39172.0,39171.0,1.2415464]
[1645858831148,2.6528456,39172.0,39171.0,1.0935464]
[1645858831342,2.7018456,39172.0,39171.0,1.0935464]
[1645858831985,2.7028456,39172.0,39171.0,1.0935464]
[1645858832586,2.74118469,39172.0,39171.0,1.0935464]
[1645858833386,2.72997469,39172.0,39171.0,1.0935464]
[1645858834588,2.74018469,39172.0,39171.0,1.0935464]
[1645858834790,0.06810428,39172.0,39171.0,1.0935464]
[1645858835088,0.05789428,39172.0,39171.0,1.0935464]
[1645858835737,0.00669428,39172.0,39171.0,1.0935464]
[1645858836634,0.00669428,39172.0,39171.0,1.4724534]
[1645858838738,0.00669428,39172.0,39171.0,1.0935464]
[1645858838943,0.00669428,39172.0,39171.0,1.09643011]
[1645858840204,0.00769428,39172.0,39171.0,1.09643011]
[1645858841306,0.00669428,39172.0,39171.0,1.09643011]
[1645858842107,0.00769428,39172.0,39171.0,1.09643011]
[1645858843337,0.00669428,39172.0,39171.0,1.09643011]
[1645858844136,0.00769428,39172.0,39171.0,1.09643011]
[1645858845336,0.00669428,39172.0,39171.0,1.09643011]
[1645858845536,0.00669428,39172.0,39171.0,0.52087733]
[1645858846237,0.00769428,39172.0,39171.0,0.52087733]
[1645858846704,0.27459328,39172.0,39171.0,0.52087733]
[1645858847094,0.05889428,39172.0,39171.0,0.52087733]
[1645858847296,0.05789428,39172.0,39171.0,0.52087733]
[1645858847693,0.27359328,39172.0,39171.0,0.52087733]
[1645858848094,0.27459328,39172.0,39171.0,0.52087733]
[1645858848497,0.42831445,39172.0,39171.0,0.52087733]
[1645858848695,0.16910428,39172.0,39171.0,0.13762672]
[1645858848896,0.16910428,39172.0,39164.0,8.109e-05]
[1645858849096,0.2259028,39171.0,39164.0,8.109e-05]
[1645858849400,0.00669428,39168.0,39164.0,8.109e-05]
[1645858849596,0.0512,39167.0,39164.0,8.109e-05]
[1645858849797,0.0512,39166.0,39164.0,8.109e-05]
[1645858849997,0.0512,39165.0,39164.0,8.109e-05]
[1645858851637,0.1012,39165.0,39164.0,8.109e-05]
[1645858852042,0.1022,39165.0,39164.0,8.109e-05]
[1645858852439,0.10889428,39165.0,39164.0,8.109e-05]
[1645858853239,0.26682591,39165.0,39164.0,8.109e-05]
[1645858853839,0.2672961,39165.0,39164.0,8.109e-05]
[1645858854040,0.2172961,39165.0,39164.0,8.109e-05]
[1645858854285,0.2172961,39165.0,39164.0,0.13770781]
[1645858862093,0.2182961,39165.0,39164.0,0.13770781]
[1645858863493,0.05936447,39165.0,39164.0,0.13770781]
[1645858866040,0.06036447,39165.0,39164.0,0.13770781]
[1645858867444,0.07358185,39165.0,39164.0,0.13770781]
[1645858868245,0.05936447,39165.0,39164.0,0.13770781]
[1645858869694,0.05936447,39165.0,39164.0,0.13759302]
[1645858869893,0.05936447,39165.0,39157.0,0.21498218]
[1645858870091,0.05467019,39165.0,39164.0,0.13759302]
[1645858873433,0.05267019,39165.0,39164.0,0.13759302]
[1645858874235,0.05467019,39165.0,39164.0,0.13759302]
[1645858875035,0.06136447,39165.0,39164.0,0.13759302]
[1645858875638,0.06136447,39165.0,39164.0,0.00673301]
[1645858876034,0.06136447,39165.0,39156.0,0.21498218]
[1645858876237,0.05267019,39165.0,39164.0,0.00673301]
[1645858878294,0.05367019,39165.0,39164.0,0.00673301]
[1645858879291,0.05267019,39165.0,39164.0,0.00673301]
[1645858879491,0.05936447,39165.0,39164.0,0.00673301]
[1645858880195,0.06036447,39165.0,39164.0,0.00673301]
[1645858881343,0.05936447,39165.0,39164.0,0.00673301]
[1645858883242,0.05436447,39165.0,39164.0,0.00673301]
[1645858883843,0.0559591,39165.0,39164.0,0.00673301]
[1645858885793,0.00828891,39165.0,39164.0,0.00673301]
[1645858886195,0.00928891,39165.0,39164.0,0.00673301]
[1645858887495,0.00828891,39165.0,39164.0,0.00673301]
[1645858891893,0.00637187,39165.0,39164.0,0.00673301]
[1645858892090,0.00032132,39166.0,39164.0,0.00673301]
[1645858892290,0.00637187,39165.0,39163.0,0.44029035]
[1645858892491,0.00032132,39166.0,39163.0,0.44029035]
[1645858892689,0.00032132,39166.0,39164.0,0.00673301]
[1645858892889,0.2156928,39169.0,39164.0,0.00673301]
[1645858893090,0.00032132,39166.0,39164.0,0.00673301]
[1645858893694,0.00637187,39165.0,39164.0,0.00673301]
[1645858894290,0.00763111,39165.0,39164.0,0.00673301]
[1645858895537,0.00619197,39165.0,39164.0,0.00673301]
[1645858895742,0.06419432,39166.0,39164.0,0.00673301]
[1645858895937,0.00619197,39165.0,39164.0,0.00673301]
[1645858896136,0.00719197,39165.0,39164.0,0.00673301]
[1645858897538,0.00619197,39165.0,39164.0,0.00673301]
[1645858898138,0.00719197,39165.0,39164.0,0.00673301]
[1645858899398,0.00619197,39165.0,39164.0,0.00902494]
[1645858900200,0.00619197,39165.0,39164.0,0.00891886]
[1645858902205,0.00719197,39165.0,39164.0,0.00891886]
[1645858903448,0.00619197,39165.0,39164.0,0.00891886]
[1645858904248,0.00719197,39165.0,39164.0,0.00891886]
[1645858905448,0.00619197,39165.0,39164.0,0.00891886]
[1645858905651,0.00060935,39161.0,39160.0,0.21539407]
[1645858905849,0.00060935,39161.0,39159.0,0.26921023]
[1645858906148,0.00160935,39161.0,39159.0,0.26921023]
[1645858907495,0.00619197,39160.0,39159.0,0.26921023]
[1645858908297,0.00719197,39160.0,39159.0,0.26921023]
[1645858909497,0.00619197,39160.0,39159.0,0.26921023]
[1645858910298,0.00719197,39160.0,39159.0,0.26921023]
[1645858911542,0.00619197,39160.0,39158.0,0.26921023]
[1645858911742,0.00060935,39161.0,39158.0,0.26921023]
[1645858911947,0.00060935,39161.0,39160.0,0.21541758]
[1645858913343,0.00680132,39161.0,39160.0,0.21541758]
[1645858916795,0.00680132,39161.0,39159.0,0.26921023]
[1645858917198,0.00619197,39160.0,39159.0,0.26921023]
[1645858917396,0.00619197,39160.0,39157.0,0.01021]
[1645858917696,0.00060935,39161.0,39159.0,0.26930768]
[1645858918343,0.00060935,39161.0,39160.0,0.21545804]
[1645858918542,0.00060935,39161.0,39158.0,0.26930768]
[1645858918843,0.00029231,39160.0,39158.0,0.26930768]
[1645858919040,0.00060935,39161.0,39158.0,0.26930768]
[1645858919846,0.00060935,39161.0,39160.0,0.21544367]
[1645858920243,0.00190166,39161.0,39160.0,0.21544367]
[1645858920444,0.00190166,39161.0,39160.0,0.21544897]
[1645858920647,0.00190166,39161.0,39158.0,0.26930768]
[1645858920648,0.00190166,39161.0,39158.0,0.21544897]
[1645858920845,0.05280935,39161.0,39158.0,0.21544897]
[1645858921445,0.05180935,39161.0,39158.0,0.21544897]
[1645858921889,0.00029231,39160.0,39158.0,0.21544897]
[1645858922890,0.05280935,39161.0,39158.0,0.21544897]
[1645858923092,0.05280935,39161.0,39159.0,0.21544897]
[1645858923293,0.05280935,39161.0,39158.0,0.21544897]
[1645858923491,0.05180935,39161.0,39158.0,0.21544897]
[1645858924290,0.05280935,39161.0,39158.0,0.21544897]
[1645858924691,0.05280935,39161.0,39157.0,0.21544897]
[1645858924892,0.00029231,39158.0,39157.0,0.21544897]
[1645858926441,0.00029231,39158.0,39156.0,0.21544897]
[1645858926842,0.05180935,39161.0,39156.0,0.21544897]
[1645858928343,0.05280935,39161.0,39156.0,0.21544897]
[1645858928544,0.00029231,39158.0,39156.0,0.21544897]
[1645858928944,0.05280935,39161.0,39156.0,0.21544897]
[1645858929794,0.0378557,39163.0,39156.0,0.21544897]
[1645858929995,0.00029231,39160.0,39157.0,0.21544897]
[1645858930199,0.0378557,39163.0,39157.0,0.21544897]
[1645858930798,0.0378557,39163.0,39158.0,0.17214403]
[1645858930997,0.11541826,39164.0,39158.0,0.17214403]
[1645858931296,0.165075,39164.0,39158.0,0.17214403]
[1645858931496,0.00029231,39161.0,39158.0,0.17214403]
[1645858931696,0.00029231,39161.0,39157.0,0.21544897]
[1645858931898,0.2157801,39163.0,39155.0,0.21544897]
[1645858932097,0.2157801,39163.0,39156.0,0.21544897]
[1645858932296,0.0512,39163.0,39156.0,0.21544897]
[1645858932496,0.2669801,39163.0,39156.0,0.21544897]
[1645858932700,0.2669801,39163.0,39155.0,0.21544897]
[1645858933144,0.00029231,39158.0,39155.0,0.21544897]
[1645858933343,0.2669801,39163.0,39155.0,0.21544897]
[1645858934144,0.30931736,39162.0,39155.0,0.21544897]
[1645858934544,0.2679801,39163.0,39155.0,0.21544897]
[1645858934744,0.00029231,39158.0,39155.0,0.21544897]
[1645858934946,0.1160809,39163.0,39156.0,0.21544897]
[1645858935546,0.1150809,39163.0,39156.0,0.21544897]
[1645858936145,0.00029231,39160.0,39156.0,0.21544897]
[1645858936346,0.11498644,39163.0,39156.0,0.21544897]
[1645858936548,0.33075274,39163.0,39155.0,0.21544897]
[1645858936794,0.30931736,39162.0,39155.0,0.21544897]
[1645858937091,0.36051736,39162.0,39155.0,0.21544897]
[1645858937894,0.36051736,39162.0,39154.0,0.21544897]
[1645858937895,0.57628366,39162.0,39154.0,0.21544897]
[1645858938390,0.57728366,39162.0,39154.0,0.21544897]
[1645858939591,0.57628366,39162.0,39154.0,0.21544897]
[1645858941346,0.06378644,39163.0,39155.0,0.30931736]
[1645858941547,0.03931382,39169.0,39159.0,0.21544897]
[1645858941750,0.24514097,39170.0,39161.0,0.24098897]
[1645858941751,0.46088887,39170.0,39161.0,0.24098897]
[1645858941945,0.46088887,39170.0,39168.0,0.02554]
[1645858941946,0.01491846,39170.0,39168.0,0.02554]
[1645858942145,0.2157479,39176.0,39169.0,0.504447]
[1645858942347,0.08,39177.0,39174.0,0.1]
[1645858942547,0.08,39176.0,39175.0,0.68822436]
[1645858942749,0.08,39176.0,39175.0,1.47955436]
[1645858942949,0.1998,39181.0,39175.0,1.47955436]
[1645858943146,0.1998,39181.0,39179.0,0.378907]
[1645858943350,0.1998,39181.0,39180.0,0.68822436]
[1645858943547,0.1998,39181.0,39180.0,0.78822436]
[1645858943748,0.1994963,39181.0,39180.0,0.378907]
[1645858943947,0.1994963,39181.0,39180.0,0.68822436]
[1645858944399,0.2014963,39181.0,39180.0,0.68822436]
[1645858945000,0.2014963,39181.0,39180.0,0.378907]
[1645858945604,0.1994963,39181.0,39180.0,0.378907]
[1645858945802,0.1994963,39181.0,39180.0,0.68503456]
[1645858946405,0.2004963,39181.0,39180.0,0.68503456]
[1645858947706,0.1994963,39181.0,39180.0,0.68503456]
[1645858947950,0.00032645,39182.0,39181.0,0.378907]
[1645858948155,0.0021,39192.0,39181.0,0.68503456]
[1645858948451,0.0021,39192.0,39188.0,0.21811798]
[1645858948850,0.0021,39192.0,39185.0,0.05]
[1645858949452,0.0430821,39192.0,39185.0,0.05]
[1645858949853,0.00032642,39190.0,39185.0,0.05]
[1645858950455,0.00032642,39190.0,39181.0,0.17862928]
[1645858950656,0.063838,39190.0,39184.0,0.05]
[1645858951054,0.00032181,39189.0,39184.0,0.05]
[1645858951896,0.10179735,39190.0,39184.0,0.05]
[1645858951897,0.07625735,39190.0,39184.0,0.05]
[1645858952092,0.00032181,39188.0,39184.0,0.05]
[1645858952993,0.01225542,39189.0,39184.0,0.05]
[1645858953196,0.00031158,39188.0,39184.0,0.05]
[1645858954295,0.001,39188.0,39184.0,0.05]
[1645858954495,0.00131201,39188.0,39184.0,0.05]
[1645858955545,0.063838,39190.0,39184.0,0.05]
[1645858955748,0.00031201,39188.0,39184.0,0.05]
[1645858956348,0.00131201,39188.0,39184.0,0.05]
[1645858956547,0.001,39188.0,39184.0,0.05]
[1645858956946,0.00130034,39188.0,39184.0,0.05]
[1645858957550,0.00030034,39188.0,39184.0,0.05]
[1645858957748,0.01253953,39189.0,39184.0,0.05]
[1645858958150,0.00030045,39188.0,39184.0,0.05]
[1645858958650,0.05150045,39188.0,39184.0,0.05]
[1645858959051,0.0512,39188.0,39184.0,0.05]
[1645858959300,0.05150045,39188.0,39185.0,0.0029123]
[1645858959498,0.06232649,39188.0,39185.0,0.0029123]
[1645858959700,0.05150045,39188.0,39185.0,0.0029123]
[1645858960103,0.10150045,39188.0,39185.0,0.0029123]
[1645858960299,0.1012,39188.0,39185.0,0.0029123]
[1645858960502,0.10150107,39188.0,39185.0,0.0029123]
[1645858960900,0.11170107,39188.0,39185.0,0.0029123]
[1645858961401,0.1114,39188.0,39185.0,0.0029123]
[1645858961802,0.1117013,39188.0,39185.0,0.0029123]
[1645858962600,0.19474224,39186.0,39185.0,0.0029123]
[1645858963048,0.1617013,39188.0,39185.0,0.0029123]
[1645858963448,0.1515013,39188.0,39185.0,0.0029123]
[1645858963850,0.1512,39188.0,39185.0,0.0029123]
[1645858964047,0.15134908,39188.0,39185.0,0.0029123]
[1645858964448,0.15334908,39188.0,39184.0,0.05]
[1645858964849,0.15334908,39188.0,39184.0,0.04500001]
[1645858965049,0.1532,39188.0,39184.0,0.04500001]
[1645858965648,0.1512,39188.0,39184.0,0.04500001]
[1645858966051,0.0512,39188.0,39184.0,0.04500001]
[1645858967497,0.0021,39192.0,39184.0,0.04500001]
[1645858967700,0.0021,39192.0,39185.0,0.30612756]
[1645858968297,0.0021,39192.0,39186.0,0.19866044]
[1645858968902,0.00034417,39191.0,39186.0,0.19866044]
[1645858969997,0.0021,39192.0,39186.0,0.19866044]
[1645858970198,0.00034417,39190.0,39186.0,0.19866044]
[1645858970472,0.0021,39192.0,39190.0,0.00048953]
[1645858971965,0.0021,39192.0,39191.0,0.378907]
[1645858972365,0.0031,39192.0,39191.0,0.378907]
[1645858973565,0.0021,39192.0,39190.0,0.00048953]
[1645858974394,0.0031,39192.0,39190.0,0.00048953]
[1645858974595,0.0031,39192.0,39191.0,0.378907]
[1645858974993,0.0031,39192.0,39190.0,0.00048953]
[1645858975793,0.0031,39192.0,39190.0,3.423e-05]
[1645858976194,0.0021,39192.0,39190.0,3.423e-05]
[1645858976404,0.0031,39192.0,39190.0,3.423e-05]
[1645858977953,0.0021,39192.0,39190.0,3.423e-05]
[1645858978150,0.0021,39192.0,39191.0,0.378907]
[1645858978551,0.0021,39192.0,39190.0,0.00103423]
[1645858978751,0.0021,39192.0,39191.0,0.378907]
[1645858979250,0.0021,39192.0,39190.0,0.00103423]
[1645858979454,0.0021,39192.0,39191.0,0.378907]
[1645858980052,0.0021,39192.0,39191.0,0.68503456]
[1645858982195,0.0021,39192.0,39191.0,0.378907]
[1645858982395,0.0031,39192.0,39191.0,0.378907]
[1645858983297,0.0031,39192.0,39191.0,0.68503456]
[1645858983797,0.0021,39192.0,39191.0,1.144387]
[1645858984198,0.0021,39192.0,39191.0,1.45051456]
[1645858984398,0.0031,39192.0,39191.0,1.45051456]
[1645858984797,0.0022,39197.0,39191.0,1.45051456]
[1645858984999,0.43109532,39200.0,39191.0,1.45051456]
[1645858985000,0.16175997,39199.0,39192.0,1.2]
[1645858985198,0.16175997,39199.0,39194.0,0.05]
[1645858985460,0.16901685,39200.0,39194.0,0.05]
[1645858985860,0.16901685,39200.0,39197.0,0.18206753]
[1645858985861,0.00034558,39198.0,39197.0,0.18206753]
[1645858986062,0.00034558,39198.0,39197.0,0.16386078]
[1645858986663,0.16901685,39200.0,39197.0,0.16386078]
[1645858987065,0.00034558,39199.0,39197.0,0.16386078]
[1645858987865,0.16901685,39200.0,39197.0,0.16386078]
[1645858988265,0.16936243,39200.0,39197.0,0.16386078]
[1645858988464,0.17136243,39200.0,39197.0,0.16386078]
[1645858989067,0.17101685,39200.0,39197.0,0.16386078]
[1645858989296,0.17057545,39200.0,39197.0,0.16386078]
[1645858989496,0.17092102,39200.0,39197.0,0.16386078]
[1645858989700,0.16892102,39200.0,39197.0,0.16386078]
[1645858990396,0.17057545,39200.0,39197.0,0.16386078]
[1645858990597,0.17092102,39200.0,39197.0,0.16386078]
[1645858991397,0.16592102,39200.0,39197.0,0.16386078]
[1645858991597,0.16557545,39200.0,39197.0,0.16386078]
[1645858991798,0.16392102,39200.0,39197.0,0.16386078]
[1645858992799,0.16357545,39200.0,39196.0,0.00288054]
[1645858993049,0.16392102,39200.0,39196.0,0.00288054]
[1645858993848,0.16392102,39200.0,39194.0,0.05]
[1645858993849,0.16357545,39200.0,39194.0,0.05]
[1645858994349,0.16392103,39200.0,39194.0,0.05]
[1645858994550,0.16692103,39200.0,39194.0,0.05]
[1645858995150,0.16657545,39200.0,39194.0,0.05]
[1645858995351,0.00034558,39199.0,39194.0,0.05]
[1645858996251,0.16357545,39200.0,39194.0,0.05]
[1645858996453,0.003,39199.0,39194.0,0.05]
[1645858996695,0.00034558,39198.0,39194.0,0.05]
[1645858997096,0.00210642,39199.0,39194.0,1.15]
[1645858997699,0.16357545,39200.0,39194.0,1.45351168]
[1645858997897,0.16357545,39200.0,39194.0,1.15]
[1645858998598,0.16357545,39200.0,39194.0,1.45351168]
[1645858998798,0.16357545,39200.0,39196.0,0.00288054]
[1645859000000,0.43288477,39200.0,39196.0,0.00288054]
[1645859000196,0.35284474,39200.0,39196.0,0.00288054]
[1645859000651,0.08353542,39200.0,39196.0,0.00288054]
[1645859001451,0.083881,39200.0,39196.0,0.00288054]
[1645859001651,0.083881,39200.0,39199.0,0.18131832]
[1645859001856,0.00034558,39200.0,39199.0,0.48411464]
[1645859002058,0.00034558,39200.0,39199.0,0.86302164]
[1645859002255,0.04,39203.0,39201.0,0.00223823]
[1645859002559,0.04,39203.0,39202.0,1.144177]
[1645859003151,0.04,39203.0,39202.0,1.44697332]
[1645859003351,0.04,39203.0,39202.0,1.144177]
[1645859004203,0.04,39203.0,39202.0,0.76527]
[1645859004600,0.0490182,39203.0,39202.0,0.76527]
[1645859005801,0.0470182,39203.0,39202.0,0.76527]
[1645859006404,0.0490182,39203.0,39202.0,0.76527]
[1645859007808,0.0470182,39203.0,39202.0,0.76527]
[1645859009350,0.0470182,39203.0,39202.0,0.7674785]
[1645859010551,0.0490182,39203.0,39202.0,0.7674785]
[1645859011700,0.0470182,39203.0,39202.0,0.7674785]
[1645859014302,0.0470182,39203.0,39202.0,0.76527]
[1645859014502,0.0490182,39203.0,39202.0,0.76527]
[1645859015553,0.0490182,39203.0,39202.0,0.7648304]
[1645859015750,0.0470182,39203.0,39202.0,0.7648304]
[1645859016148,0.25222359,39203.0,39202.0,0.7648304]
[1645859016351,0.60621991,39203.0,39202.0,0.7648304]
[1645859018850,0.80621991,39203.0,39202.0,0.31682354]
[1645859019048,0.81641991,39203.0,39194.0,0.05]
[1645859019304,0.089369,39200.0,39194.0,0.05]
[1645859019506,0.38106658,39199.0,39194.0,0.05]
[1645859019903,0.19724566,39197.0,39194.0,0.05]
[1645859020103,0.0512,39196.0,39194.0,0.05]
[1645859020305,0.0512,39195.0,39194.0,0.05]
[1645859020706,0.05089297,39195.0,39194.0,0.05]
[1645859022605,0.05189297,39195.0,39194.0,0.05]
[1645859023872,0.05089297,39195.0,39194.0,0.05]
[1645859024470,0.05189297,39195.0,39194.0,0.05]
[1645859025572,0.05189297,39195.0,39194.0,0.045]
[1645859025573,0.35621955,39195.0,39194.0,0.045]
[1645859025778,0.35521955,39195.0,39194.0,0.045]
[1645859026375,0.45521955,39195.0,39194.0,0.045]
[1645859026574,0.44721955,39195.0,39194.0,0.045]
[1645859027306,0.14289297,39195.0,39194.0,0.045]
[1645859027502,0.04289297,39195.0,39194.0,0.045]
[1645859027703,0.14289297,39195.0,39194.0,0.045]
[1645859027902,0.14089297,39195.0,39194.0,0.045]
[1645859028104,0.04089297,39195.0,39194.0,0.045]
[1645859035102,0.03804569,39195.0,39194.0,0.045]
[1645859036504,0.03904569,39195.0,39194.0,0.045]